Cogmind - Beta 15 @@@ ROGUE MODE // 2025.06.22 @ 21:38:19 Player: dorusv Result: Destroyed by G-47 Trooper with Particle Gun Performance ------------- Evolutions (3) 1500 Regions Visited (5) 1000 Robots Destroyed (128) 640 Value Destroyed (3519) 3519 Prototype IDs (4) 80 Alien Tech Used (0) 0 Bonus (635) 635 TOTAL SCORE: 7374 Bonus ------- High Alert Combat Kills 570 Follower Combat Kills 65 Cogmind --------- Core Integrity 0/700 Matter 293/300 Energy 6/100 System Corruption 33% Temperature Cool (9) Movement Rolling (140) Ox4 Location -7/Factory Parts ------- > --- POWER (2) -------- (None) > --- PROPULSION (4) --- Wheel > --- UTILITY (3) ------ High-capacity Storage Unit Improved Shield Generator > --- WEAPON (4) ------- (None) > --- INVENTORY (20) --- Light Ion Engine Large Storage Unit Medium Matter Pod (100) Targeting Computer Improved Medium Armor Plating Reflective Plating Peak State ------------ > --- POWER ------------ Light Nuclear Core Micro Nuclear Core > --- PROPULSION ------- Wheel Wheel Wheel Compact Wheel > --- UTILITY ---------- High-capacity Storage Unit Improved Utility Shielding High-powered Tractor Beam > --- WEAPON ----------- EM Pulse Cannon Improved EM Pulse Cannon Remote Datajack Impact Mace > --- INVENTORY -------- Light Ion Engine Large Storage Unit Medium Matter Pod Targeting Computer Improved Medium Armor Plating Reflective Plating Improved Shield Generator [Rating: 35] Favorites ----------- Power Ion Engine Engine Ion Engine Power Core Light Nuclear Core Propulsion Aluminum Leg Treads Light Treads Leg Aluminum Leg Wheel Wheel Flight Unit Improved Flight Unit Utility High-capacity Storage Unit Device Improved Heat Sink Storage High-capacity Storage Unit Processor Targeting Computer Protection Improved Utility Shielding Weapon Gatling Laser Energy Gun Gatling Laser Energy Cannon Heavy Particle Cannon Ballistic Gun Enhanced Autogun Ballistic Cannon Gauss Cannon Launcher Improved Grenade Launcher Special Weapon Remote Datajack Impact Weapon Impact Mace Special Melee Weapon Improved Datajack Build | -11 -10 -10 -9 -8 -7 ------- Run | Yrd Mat Min Mat Mat Fac Slots Evolved 6 | . . . 2 2 2 Power 1 | . . . . . 1 Propulsion 2 | . . . . 2 . Utility 1 | . . . 1 . . Weapon 2 | . . . 1 . 1 Parts Attached 83 | 7 2 1 13 27 33 Power 13 | 1 . . 3 4 5 Engine 5 | 1 . . 3 1 . Core 8 | . . . . 3 5 Reactor . | . . . . . . Propulsion 27 | 2 . . 6 9 10 Treads 2 | . . . 2 . . Leg 10 | . . . 1 9 . Wheel 12 | 2 . . . . 10 Hover . | . . . . . . Flight 3 | . . . 3 . . Utility 12 | 2 . . 2 5 3 Device 6 | 2 . . 1 1 2 Storage 4 | . . . 1 3 . Processor 1 | . . . . 1 . Hackware . | . . . . . . Protection 1 | . . . . . 1 Artifact . | . . . . . . Weapon 31 | 2 2 1 2 9 15 Energy Gun 7 | 2 . . . 1 4 Energy Cannon 5 | . 1 . . 1 3 Ballistic Gun 6 | . . . 1 2 3 Ballistic Cannon 4 | . . . 1 . 3 Launcher 6 | . 1 1 . 4 . Special Weapon 1 | . . . . . 1 Impact Weapon 1 | . . . . . 1 Slashing Weapon . | . . . . . . Piercing Weapon . | . . . . . . Special Melee Weapon 1 | . . . . 1 . Unidentified Prototypes 4 | . . . 2 . 2 Corrupted Parts 3 | . . . . . 3 System Corruption 15 | . . . . . 15 Parts Lost 65 | . . . 1 24 40 Power 9 | . . . . 2 7 Propulsion 19 | . . . . 8 11 Utility 8 | . . . 1 3 4 Weapon 29 | . . . . 11 18 Highest Loss Streak 10 | . . . 1 8 10 To Critical Strikes 1 | . . . . . 1 Average Backups 6 | 2 4 5 5 9 6 Power . | . 1 1 1 1 . Propulsion . | . . . . 1 . Utility 3 | . 1 1 . 3 4 Weapon 1 | . 2 3 2 2 1 Tool/Special . | . . . . . . Unused Backups 5 | . . . . . 5 Power 1 | . . . . . 1 Propulsion . | . . . . . . Utility 4 | . . . . . 4 Weapon . | . . . . . . Tool/Special . | . . . . . . Average Slot Usage (%) 73 | . 100 100 97 76 64 Engine 5 | . 14 14 11 3 4 Core 2 | . . . . 1 2 Leg 9 | . . . 1 23 6 Wheel 5 | . 28 28 4 . 3 Device 9 | . 28 28 27 3 5 Storage 11 | . . . 4 15 12 Energy Gun 7 | . 7 . . 6 10 Energy Cannon 3 | . 10 14 1 1 3 Ballistic Gun 2 | . . . 9 5 . Ballistic Cannon 3 | . . . 9 2 3 Launcher 4 | . 11 14 11 7 1 Impact Weapon 1 | . . . . . 2 Peak Build Rating 35 | 9 9 10 22 29 35 Average Rating 20 | 4 9 9 18 18 23 On Entrance 10 | . 9 9 10 18 16 Naked Turns . | . . . . . . Heaviest Build 77 | 10 13 14 27 60 77 Greatest Support 59 | 26 26 26 26 59 52 Greatest Overweight (x) 25 | 2 . . 6 4 25 Average Overweight (x) 2 | . . . . 1 4 Largest Inventory Capacity 20 | 5 5 5 8 20 20 Average Capacity 16 | 5 5 5 6 16 20 Most Carried 15 | 3 5 5 8 15 10 Average Carried 6 | 2 4 5 5 9 6 Final Capacity 20 | 5 5 5 8 20 20 Final Carried 8 | 3 5 5 8 7 6 Class Distribution -------------------- 31% | Mutant 25% | Gunner 11% | Bomber 10% | Scavenger-Bomber 5% | Scavenger-Mutant 5% | Tank 5% | Scavenger-Tank 3% | Scavenger-Gunner Dominant Class ---------------- Mutant | -10/Materials Mutant | -10/Mines Bomber | -9/Materials Mutant | -8/Materials Gunner | -7/Factory Resources | -11 -10 -10 -9 -8 -7 ----------- Run | Yrd Mat Min Mat Mat Fac Matter Collected 2898 | 270 62 28 591 923 1024 Remotely 586 | . . . . . 586 Salvage Created 3508 | 110 65 25 746 1469 1093 Parts 218 | 8 4 7 52 86 61 Haulers Intercepted 2 | . . . 2 . . Recyclers Shooed 2 | . . . . . 2 Parts Field Recycled . | . . . . . . Retrieved Matter . | . . . . . . Parts Self-Destructed . | . . . . . . Prevented . | . . . . . . Kills | -11 -10 -10 -9 -8 -7 ------- Run | Yrd Mat Min Mat Mat Fac Combat Hostiles Destroyed 81 | . 2 3 21 35 20 Melee 3 | . . . . . 3 Guns 20 | . . . 4 12 4 Cannons 23 | . 1 . 3 8 11 AOE 33 | . 1 3 14 14 1 Classes Destroyed 15 | 2 2 1 7 2 1 Worker 8 | . . . . 3 5 Builder 11 | . . . 3 2 6 Tunneler 5 | 2 . . . 1 2 Hauler 2 | . . . 2 . . Recycler 6 | 1 . . . 2 3 Mechanic 3 | . . . 1 2 . Operator 3 | . . . 2 1 . Watcher 9 | . 1 . 4 3 1 Swarmer 24 | . . 3 6 8 7 Grunt 38 | . 2 . 11 20 5 Brawler 3 | . . . 1 2 . Protector 1 | . . . 1 . . Sentry 5 | . . . 2 3 . Hunter 4 | . . . . 2 2 Programmer 6 | . . . . . 6 Best Kill Streak 11 | 3 3 3 7 9 11 Combat Bots Only 7 | . 2 3 5 7 4 Max Kills in Single Turn 5 | 2 1 3 5 3 2 Gunslinging . | . . . . . . Exploded 5 | . 1 3 5 2 1 Melee 1 | . . . . . 1 Uniques/NPCs Destroyed . | . . . . . . Combat | -11 -10 -10 -9 -8 -7 -------- Run | Yrd Mat Min Mat Mat Fac Hostile Shots Fired 592 | . 5 . 46 224 317 Missed 162 | . 2 . 20 66 74 Hits 430 | . 3 . 26 158 243 Projectile 430 | . 3 . 26 158 243 AOE 1 | . . . . 1 . Critical Strikes 27 | . 1 . 1 12 13 Part Disruptions 2 | . . . . 1 1 Damage Taken 6432 | 1 50 19 353 2550 3459 Core 1094 | . 32 7 66 288 701 Absorbed by Shields 312 | . . . 102 119 91 Redirected to Shielding 104 | . . . . . 104 Core Remaining (%) 78 | 100 . 84 83 47 . Volleys Fired 239 | 6 6 1 31 106 89 Largest 3 | 2 2 2 3 3 3 Hottest 210 | 80 90 90 95 136 210 Shots Fired 470 | 12 11 2 81 199 165 Gun 240 | 12 . . 29 125 74 Cannon 173 | . 6 1 31 47 88 Launcher 54 | . 5 1 21 27 . Special 3 | . . . . . 3 Kinetic 229 | . . . 58 94 77 Thermal 103 | 6 6 1 2 61 27 Explosive 54 | . 5 1 21 27 . Electromagnetic 81 | 6 . . . 17 58 Robot Hit Streak 14 | 3 2 . 4 14 10 Robot Miss Streak 6 | 4 3 . 5 3 6 Penetration Max 1 | . . . . . 1 Secondary Targets . | . . . . . . Shots Hit Robots 271 | 5 1 . 33 119 113 Core Hits 201 | 4 9 3 47 88 50 Critical Kills 1 | . . . . . 1 Critical Parts Destroyed 7 | . . . . . 7 Critical Strikes 13 | . . . 1 1 11 Blast 3 | . . . 1 . 2 Corrupt 1 | . . . . 1 . Smash 9 | . . . . . 9 Melee Attacks 26 | . . . . . 26 Impact 25 | . . . . . 25 Slashing . | . . . . . . Piercing . | . . . . . . Sneak Attacks 8 | . . . . . 8 Combat Hostiles . | . . . . . . Follow-up Attacks . | . . . . . . Damage Inflicted 9487 | 78 103 142 1779 4027 3358 Guns 2199 | 75 . . 231 1154 739 Cannons 2289 | . 18 . 324 614 1333 Explosions 3896 | . 85 131 1217 2238 225 Melee 1061 | . . . . . 1061 Ramming 42 | 3 . 11 7 21 . Kinetic 2426 | . . . 537 992 897 Thermal 1471 | 22 18 . 18 635 778 Explosive 3671 | . 85 131 1217 2238 . Electromagnetic 816 | 53 . . . 141 622 Impact 1061 | . . . . . 1061 Slashing . | . . . . . . Piercing . | . . . . . . Highest Corruption 33 | . . . 1 1 33 Average Corruption 6 | . . . 1 1 8 Corruption Purged . | . . . . . . Corruption Blocked . | . . . . . . Effects 97 | . . . 1 3 93 Message Errors 24 | . . . . . 24 Matter Fused 23 | . . . . 1 22 Heat Flow Errors 9 | . . . . . 9 Energy Discharges 9 | . . . . 1 8 Parts Rejected 3 | . . . . 1 2 Data Loss (minor) 15 | . . . 1 . 14 Data Loss (major) 3 | . . . . . 3 Misfires 4 | . . . . . 4 Alerts 2 | . . . . . 2 Misdirections 2 | . . . . . 2 Weapon Failures 3 | . . . . . 3 Overload Shots . | . . . . . . Overflow Damage 801 | . . . 23 138 640 Projectiles 45 | . . . . . 45 Explosions 173 | . . . 23 138 12 Melee 583 | . . . . . 583 Knockbacks 25 | . . 1 3 5 16 Impact 8 | . . 1 . 1 6 Kinetic 17 | . . . 3 4 10 Secondary . | . . . . . . Self-Inflicted Damage 543 | 1 . 19 167 356 . Shots 15 | . . 1 6 8 . Rammed 4 | 1 . 1 2 . . Targets Rammed 7 | 1 . 1 2 3 . Kicked 3 | . . . . 3 . Crushed . | . . . . . . Highest Temperature 606 | 72 165 30 437 348 606 Average Temperature 104 | 32 67 17 76 77 162 Received Heat Transfer 1841 | . 45 . 63 1135 598 Effects 26 | . . . 1 1 24 Shutdowns 7 | . . . 1 . 6 Energy Bleed 3 | . . . . . 3 Interference 7 | . . . . . 7 Matter Decay 2 | . . . . . 2 Short Circuit 1 | . . . . . 1 Damage (minor) 2 | . . . . 1 1 Damage (major) 4 | . . . . . 4 Siege Activations . | . . . . . . Martial Activations . | . . . . . . Shielding Activations . | . . . . . . Robots Disrupted . | . . . . . . Combat Hostiles . | . . . . . . Robots Corrupted 5 | . . . . . 5 Combat Hostiles 1 | . . . . . 1 Parts Fried 13 | . . . . . 13 Impact Corruptions 22 | . . . . . 22 Robots Melted 1 | . . . . 1 . Combat Hostiles 1 | . . . . 1 . Parts Melted 3 | . . . . 1 2 Heat Transferred 2979 | 50 37 . 37 1384 1471 Parts Sabotaged . | . . . . . . Parts Stolen . | . . . . . . Parts Stripped . | . . . . . . Power Chain Reactions 2 | . . . . . 2 Alert | -11 -10 -10 -9 -8 -7 ------- Run | Yrd Mat Min Mat Mat Fac Maximum Alert Level 3 | . . . 2 3 1 Low Security (%) 58 | 100 100 100 30 . 77 Level 1 13 | . . . 7 3 22 Level 2 14 | . . . 61 38 . Level 3 13 | . . . . 58 . Level 4 . | . . . . . . Level 5 . | . . . . . . High Security . | . . . . . . Max Security . | . . . . . . Peak Influence 931 | 15 69 92 658 931 362 Initial 362 | . . 15 . 248 362 Average 248 | 1 31 15 387 682 97 Influence Increases 3235 | 15 79 77 932 1346 786 Destroy 0b10 Robot/C 1660 | . 40 60 460 700 400 Destroy 0b10 Robot/NC 245 | 15 5 . 70 70 85 Destroy Leader 434 | . 12 10 124 156 132 Allied During Kill 38 | . . . 38 . . Successful Hack 39 | . . . . 14 25 Disable Machine 195 | . . . 75 120 . Destroy Structure 444 | . 22 7 165 226 24 Lose Combat Pursuer 180 | . . . . 60 120 Influence Decreases 2960 | 15 40 116 342 1138 1309 Entered New Map 802 | . . 24 . 342 436 Time Decay 1498 | 15 40 92 292 556 503 Lost Part 620 | . . . 10 240 370 Lost Ally 40 | . . . 40 . . Squads Dispatched 28 | . . . 8 7 13 Investigation 9 | . . . 1 4 4 Extermination 6 | . . . . . 6 Reinforcement 10 | . . . 6 2 2 Assault 2 | . . . 1 1 . Garrison 1 | . . . . . 1 Intercept . | . . . . . . Searches Triggered . | . . . . . . Construction Impeded 4 | . . . 2 1 1 Haulers Reinforced . | . . . . . . Active Scanning Responses . | . . . . . . Cargo Convoy Interrupts . | . . . . . . Stealth | -11 -10 -10 -9 -8 -7 --------- Run | Yrd Mat Min Mat Mat Fac Distress Signals 9 | . 1 . 5 2 1 Communications Jammed . | . . . . . . Distress Signals . | . . . . . . Times Spotted 131 | . 3 . 36 48 44 Peak Tracking Total 7 | . 3 . 5 7 6 Tactical Retreats 9 | . . . . 1 8 Traps | -11 -10 -10 -9 -8 -7 ------- Run | Yrd Mat Min Mat Mat Fac Traps Triggered 2 | . . . . 1 1 Indirectly . | . . . . . . Trap Hack Attempts . | . . . . . . Triggered . | . . . . . . Disarmed . | . . . . . . Reprogrammed . | . . . . . . Reused . | . . . . . . Traps Extracted . | . . . . . . Installed . | . . . . . . Triggered . | . . . . . . Machines | -11 -10 -10 -9 -8 -7 ---------- Run | Yrd Mat Min Mat Mat Fac Machines Disabled 13 | . . . 5 8 . Max in Single Turn 5 | . . . 1 5 . Machines Repaired . | . . . . . . Machines Dismantled . | . . . . . . Machines Sabotaged . | . . . . . . Overloaded Fab Kills . | . . . . . . Hacking | -11 -10 -10 -9 -8 -7 --------- Run | Yrd Mat Min Mat Mat Fac Machines Accessed 11 | . 1 . 2 4 4 Terminals 11 | . 1 . 2 4 4 Fabricators . | . . . . . . Repair Stations . | . . . . . . Recycling Units . | . . . . . . Scanalyzers . | . . . . . . Garrison Access . | . . . . . . Total Hacks 34 | . 4 . 5 12 13 Successful 8 | . 1 . . 2 5 Failed 26 | . 3 . 5 10 8 Catastrophic 11 | . . . 3 6 2 Database Lockouts . | . . . . . . Manual 11 | . . . 2 8 1 Terminals 34 | . 4 . 5 12 13 Fabricators . | . . . . . . Repair Stations . | . . . . . . Recycling Units . | . . . . . . Scanalyzers . | . . . . . . Garrison Access . | . . . . . . Terminal Hacks 8 | . 1 . . 2 5 Record 3 | . 1 . . . 2 Branch Access Points 1 | . . . . . 1 Emergency Access Points 2 | . . . . 1 1 Alert Level 1 | . . . . 1 . Zone Layout 1 | . . . . . 1 Fabricator Hacks . | . . . . . . Repair Station Hacks . | . . . . . . Recycling Unit Hacks . | . . . . . . Scanalyzer . | . . . . . . Garrison Access Hacks . | . . . . . . Unauthorized Hacks . | . . . . . . Terminals . | . . . . . . Fabricators . | . . . . . . Repair Stations . | . . . . . . Recycling Units . | . . . . . . Scanalyzers . | . . . . . . Garrison Access . | . . . . . . Data Cores Recovered . | . . . . . . Used . | . . . . . . Hacking Detections 11 | . 1 . 2 4 4 Full Trace Events 11 | . 1 . 2 4 4 Feedback Events . | . . . . . . Feedback Blocked . | . . . . . . Robot Schematics Acquired . | . . . . . . Robots Built . | . . . . . . Authchips . | . . . . . . Time . | . . . . . . Total Robot Build Rating . | . . . . . . Part Schematics Acquired . | . . . . . . Parts Built . | . . . . . . Authchips . | . . . . . . Time . | . . . . . . Total Part Build Rating . | . . . . . . Parts Repaired . | . . . . . . Time . | . . . . . . Parts Recycled . | . . . . . . Recycled Matter . | . . . . . . Retrieved Matter . | . . . . . . Retrieved Components . | . . . . . . Parts Scanalyzed . | . . . . . . Part Schematics Acquired . | . . . . . . Parts Damaged . | . . . . . . Bothacking | -11 -10 -10 -9 -8 -7 ------------ Run | Yrd Mat Min Mat Mat Fac Used RIF Installer . | . . . . . . Robots Hacked 2 | . . . . . 2 Non-combat 1 | . . . . . 1 Combat 1 | . . . . . 1 Robot Hacks Applied 2 | . . . . . 2 parse_system 2 | . . . . . 2 Relay Couplers Released . | . . . . . . Fabnet Peak Effective % . | . . . . . . Robots Rewired . | . . . . . . Allies Hacked . | . . . . . . Hacks Repelled . | . . . . . . Allies | -11 -10 -10 -9 -8 -7 -------- Run | Yrd Mat Min Mat Mat Fac Total Allies 3 | . . 3 . . . Largest Group 3 | . . 3 2 . . Highest-Rated Group 78 | . . 78 47 . . Highest-Rated Ally 31 | . . 31 31 . . Total Orders . | . . . . . . Ally Attacks 24 | . . . 24 . . Total Damage 212 | . . . 212 . . Kills 4 | . . . 4 . . Allies Corrupted . | . . . . . . Allies Melted . | . . . . . . Intel | -11 -10 -10 -9 -8 -7 ------- Run | Yrd Mat Min Mat Mat Fac Active Infowar (turns) 1824 | 13 130 604 669 408 . Terrain 1113 | 10 130 604 369 . . Seismic 1824 | 13 130 604 669 408 . Robot Analysis Total . | . . . . . . Derelict Logs Recovered 3 | . . 3 . . . Drone Launches . | . . . . . . Drone Recoveries . | . . . . . . Exploration | -11 -10 -10 -9 -8 -7 ------------- Run | Yrd Mat Min Mat Mat Fac Turns Passed 7097 | 102 130 604 669 1621 3971 Spaces Moved 2719 | 76 121 662 311 616 933 Core 99 | 43 . . 1 . 55 Treads 105 | . . . 105 . . Legs 1151 | . . . 37 616 498 Wheels 1308 | 33 121 662 112 . 380 Hover . | . . . . . . Flight 56 | . . . 56 . . Fastest Speed 50 | 50 90 90 90 120 90 Average Speed 228 | 92 90 90 179 210 382 Slowest Speed 1300 | 150 90 90 350 400 1300 Overloaded Moves . | . . . . . . Propulsion Burnouts . | . . . . . . Robots Hopped . | . . . . . . Potential Cave-ins . | . . . . . . Cave-ins Triggered . | . . . . . . Exploration Rate (%) 36 | 5 22 98 37 37 20 Regions Visited 5 Branch Regions 1 Pre-discovered Areas . | . . . . . . Known Exits Taken . | . . . . . . Unknown Exits Taken 5 | 1 1 1 1 1 . Scrap Searched 1 | . . 1 . . . Spaces Dug 17 | . . . 17 . . Terrain Destroyed 492 | . 21 7 199 240 25 Melee . | . . . . . . Projectile 34 | . . . 7 10 17 AOE 458 | . 21 7 192 230 8 Terrain Rammed . | . . . . . . Walls Destroyed . | . . . . . . Machines Disabled . | . . . . . . Actions | -11 -10 -10 -9 -8 -7 --------- Run | Yrd Mat Min Mat Mat Fac Total 3169 | 92 131 668 368 772 1138 Wait 38 | . . 3 . 2 33 Move 2715 | 76 120 661 310 615 933 Hop . | . . . . . . Pick Up 21 | 3 1 . 2 7 8 Fast Attach 60 | 7 1 1 8 13 30 Attach 26 | . 1 . 2 11 12 Detach 9 | . 2 . 2 1 4 Swap 14 | . . . 4 9 1 Drop 15 | . . 1 7 5 2 Fire 239 | 6 6 1 31 106 89 Melee 26 | . . . . . 26 Ram 3 | . . 1 2 . . Kick 3 | . . . . 3 . Crush . | . . . . . . Escape Stasis . | . . . . . . Rewire . | . . . . . . Trap . | . . . . . . Miscellaneous . | . . . . . . Route ------- -11/Scrapyard -10/Materials -10/Mines (discovered 3 exits: *Mat x2 / [*Exi]) -9/Materials -8/Materials -7/Factory (discovered 3 exits: Sto / Low x2) History --------- Turn | Location | Event 4 | -11/Scrapyard | Discovered new exit (range 16) 103 | -11/Scrapyard | Entered Materials 132 | -10/Materials | Discovered new exit (range 11) 233 | -10/Materials | Entered Mines 245 | -10/Mines | Deemed a non-threat by the Exiles lab entrance 246 | -10/Mines | Discovered new exit (range 5) 268 | -10/Mines | Learned Materials non-interactive machine intel 274 | -10/Mines | Received a Rocket Launcher from a helpful Derelict 293 | -10/Mines | Discovered new exit (range 5) 315 | -10/Mines | Build established: Mutant 516 | -10/Mines | Received a Mining Laser from a helpful Derelict 655 | -10/Mines | Learned Materials security intel 782 | -10/Mines | Discovered new exit (range 14) 837 | -10/Mines | Entered Materials 837 | -9/Materials | Accompanied by 2 allies 837 | -9/Materials | Evolved 2 slots: Utility x1, Weapon x1 839 | -9/Materials | Loaded intel: 28 non-interactive machine locations 842 | -9/Materials | Led the pair of lost Derelicts to an unsafe place 1237 | -9/Materials | First assault squad dispatched 1251 | -9/Materials | Discovered new exit (range 15) 1343 | -9/Materials | Build established: Bomber 1506 | -9/Materials | Entered another Materials area 1506 | -8/Materials | Evolved 2 slots: Propulsion x2 1956 | -8/Materials | Lost 3 parts (1u2w) 2115 | -8/Materials | Destroyed 7 combat bots 2219 | -8/Materials | Lost 3 parts (1n2w) 2306 | -8/Materials | First assault squad dispatched 2389 | -8/Materials | Core integrity fell below 50% 2417 | -8/Materials | Lost 8 parts (1p3n4w) 2548 | -8/Materials | Lost 6 parts (1p3n1u1w) 2802 | -8/Materials | Build established: Mutant 2946 | -8/Materials | Discovered new exit (range 13) 3127 | -8/Materials | Entered Factory 3127 | -7/Factory | Evolved 2 slots: Power x1, Weapon x1 3128 | -7/Factory | Identified exit to Storage 3482 | -7/Factory | Build established: Bomber 3929 | -7/Factory | Lost 5 parts (1p1n3w) 4192 | -7/Factory | Build established: Mutant 4537 | -7/Factory | Build established: Gunner 4537 | -7/Factory | Identified exit to Lower Caves 6105 | -7/Factory | System corruption reached 10% 6141 | -7/Factory | Lost 7 parts (2p2u3w) 6431 | -7/Factory | Core integrity fell below 50% 6483 | -7/Factory | Lost 5 parts (1n4w) 6740 | -7/Factory | Lost 4 parts (1p1n2w) 6870 | -7/Factory | System corruption reached 30% 6941 | -7/Factory | Lost 7 parts (2p3n1u1w) 7030 | -7/Factory | Garrison activated, responded to threat 7031 | -7/Factory | Core integrity fell below 20% 7098 | -7/Factory | Destroyed by G-47 Trooper with Particle Gun Last Messages --------------- 07053_ System corrupted: Substantial component data lost. 07054_ K-01 Serf collects debris. 07063_ Y-54 Guardian suffers critical hit (Smash). 07063_ Destroyed Flak Gun. 07063_ Y-54 Guardian system corrupted by crushing effect. 07064_ Imp. Utility Shielding destroyed. 07066_ Y-54 Guardian suffers critical hit (Smash). 07066_ Destroyed Imp. Heat Sink. 07066_ Y-54 Guardian system corrupted by crushing effect. 07066_ Y-54 Guardian misfires. 07068_ System corrupted: Matter fused (-8). 07073_ Autogun destroyed. 07074_ Y-54 Guardian suffers critical hit (Smash). 07075_ Y-54 Guardian IFF system glitched. 07079_ Wheel destroyed. 07080_ Lgt. Nuclear Core destroyed. 07081_ Critical hit (Burn: +27). 07084_ Y-54 Guardian IFF system glitched. 07093_ System corrupted: Matter fused (-7). 07094_ Impact Mace destroyed. Map ----- +----------------------------------------------------+ | ??????????# #????????????????????? | | ??????????###################????????????????????? | | ?????????????????????????????????????????????????? | | ?????????????########????????????????????????????? | | #????????????# T #? ??????????????????????? | | #????????????# # ????????????????????? | | #????????????# # #??????????????????? | | #????????????# # #??????????????????? | | ##########???# = # ???????????????????? | | # ##### # ???????????????????? | | #"" """ !+ + """" # ????????????????????? | | #"" """ ##### """" # ????????????????????? | | #"" """ #???# """" # ?????????????????????? | | #T #???# """" # ! ?????????????????????? | | #"" """ #???# """" #? ??????????????????????? | | #"" """ #???# """" #? ??????????????????????? | | #"" """ #???# """" #?? ???????????????????????? | | # #???# #?? ???????????????????????? | | ###+#############+######/############ ??????????? | | % % ?????????? | | %% ?????????? | | g ?????????? | | % g ?????????? | | % Yg ?????????? | | ###+######+#############g#############+??????????? | | # %%! # # ! @!! #?????????????????? | | # !""" # """# !! #?????????????????? | | # """ # """# #?????????????????? | | # """ # """# #?????????????????? | | # # # """" """" #?????????????????? | | # ! """ # """# """" """" #?????????????????? | | # """ # """# """" """" #?????????????????? | | # """ # """# """" """" #?????????????????? | | # # #???"" ""??? #?????????????????? | | ##################????"" "???????????????????????? | | ???????????????????????" "???????????????????????? | | ??????????????????????? ????????????????????????? | | ???????????????????????##????????????????????????? | | ?????????????????????????????????????????????????? | | ?????????????????????????????????????????????????? | | ?????????????????????????????????????????????????? | | ?????????????????????????????????????????????????? | | ?????????????????????????????????????????????????? | | ?????????????????????????????????????????????????? | | ?????????????????????????????????????????????????? | | ?????????????????????????????????????????????????? | | ?????????????????????????????????????????????????? | | ?????????????????????????????????????????????????? | | ?????????????????????????????????????????????????? | | ?????????????????????????????????????????????????? | +----------------------------------------------------+ Best States ------------- Heat Dissipation 48 Energy Generation 24 Energy Capacity 510 Matter Stores 300 Matter Capacity 300 Sight Range 16 Terrain Scan Range 16 Terrain Scan Density 10 Utility Shielding 66 Evasion (%) 55 Targeting Accuracy 5 Recoil Reduction 1 Item Schematics ----------------- None Robot Schematics ------------------ None Fabricated ------------ Nothing Repaired ---------- Nothing Alien Tech Used ----------------- None Achievements -------------- Significant Disruption Challenges ------------ None Game ------ Seed SurveybotAluminumTorch Manual? 0 Play Time 00:40:53 Cumulative 14.3 hours Start 2025.06.22 @ 20:37:35 End 2025.06.22 @ 21:38:19 Sessions 1 Manual Loads 0 Difficulty Rogue Special Mode None Game No. 47 Rogue 44 Adventurer 3 Explorer 0 Win Type - Total 0 Types 0/0/0/0/0/0/0/0/0/0 Lore% 11 Gallery% 20 Achievement% 19 Wizard Run 0 Options --------- Layout 0 ASCII 0 Keyboard 1 Movement Arrows Keybinds 0 Fullscreen 2 Font 24/Smallcaps Map View 183x50 Zoom Use 0% Tactical HUD 1 Map Filters NONE Filters NONE Steam 1 RUN: 56578927-64ef-498c-99c8-321a80ba459f